bitfinex/quotes_ETHUSD_20250110
["timestamp","ask_amount","ask_price","bid_price","bid_amount"]
[1736470422705,0.56,3234.5,3233.7,0.242]
[1736470422901,0.56,3234.5,3234.0,3.09214]
[1736470423735,0.56,3234.5,3234.0,3.12305791]
[1736470424308,0.56,3234.5,3234.1,3.09202]
[1736470424548,2.91219326,3234.6,3234.3,3.09184]
[1736470424743,0.56,3234.8,3234.3,3.09184]
[1736470426246,2.91219326,3234.6,3234.1,3.09204]
[1736470427850,2.91219326,3234.6,3234.2,3.09194]
[1736470428214,0.03275203,3234.5,3234.2,3.09194]
[1736470428551,0.03275203,3234.5,3234.2,0.242]
[1736470428741,3.47219326,3234.3,3234.2,0.242]
[1736470429049,3.50478828,3234.3,3234.2,0.242]
[1736470429246,3.50478828,3234.3,3233.9,3.09218]
[1736470429552,3.50478828,3234.3,3234.0,0.244]
[1736470431548,0.59259502,3234.3,3234.0,0.244]
[1736470431848,0.03259502,3234.3,3234.0,0.27491982]
[1736470432057,0.56,3234.9,3234.2,0.8112]
[1736470432212,0.03247726,3234.8,3234.2,3.09193]
[1736470432415,2.91219326,3234.7,3234.2,3.09193]
[1736470432852,0.03247726,3234.6,3234.2,3.09193]
[1736470433224,0.03247726,3234.6,3234.3,3.09183]
[1736470435959,0.03247726,3234.6,3234.0,0.244]
[1736470436163,0.03247726,3234.6,3234.1,3.09201]
[1736470436922,0.03247726,3234.6,3234.1,3.12292672]
[1736470437422,0.03247726,3234.6,3234.1,3.09201]
[1736470438966,2.91219326,3234.4,3233.8,3.09225]
[1736470439127,2.91219326,3234.1,3233.8,3.09225]
[1736470439329,2.91219326,3234.1,3233.7,0.244]
[1736470439549,0.56,3234.0,3233.7,0.244]
[1736470439746,0.59271933,3234.0,3233.7,0.244]
[1736470440365,0.59271933,3234.0,3233.6,3.0925]
[1736470440545,0.59271933,3234.0,3233.7,0.244]
[1736470441534,0.59271933,3234.0,3233.6,3.0925]
[1736470441734,0.59271933,3234.0,3233.7,0.244]
[1736470443472,0.59271933,3234.0,3233.6,3.0925]
[1736470443673,0.59271933,3234.0,3233.7,0.244]
[1736470444259,2.91219326,3233.8,3232.9,3.89693]
[1736470444588,0.03257539,3233.7,3233.3,3.09272]
[1736470444961,2.91219326,3233.8,3233.3,3.09272]
[1736470445288,0.03209121,3233.7,3233.3,3.09272]
[1736470445661,2.91219326,3233.8,3233.3,3.09272]
[1736470445863,0.03209121,3233.7,3233.3,3.09272]
[1736470446066,2.91219326,3233.8,3233.4,3.09263]
[1736470446396,2.91219326,3233.8,3233.5,0.244]
[1736470446397,0.03209121,3233.7,3233.5,0.244]
[1736470446749,2.91219326,3233.8,3233.5,0.244]
[1736470447185,0.03209121,3233.7,3233.5,3.3366]
[1736470447685,2.91219326,3233.8,3233.5,3.3366]
[1736470448086,0.03209121,3233.7,3233.5,0.244]
[1736470448472,2.91219326,3233.8,3233.5,0.244]
[1736470448673,0.03209121,3233.7,3233.5,0.244]
[1736470448878,0.56,3233.6,3232.5,0.7686]
[1736470449081,2.91219326,3232.6,3232.2,3.09385]
[1736470449378,2.91219326,3232.6,3232.0,0.8076]
[1736470449379,2.91219326,3232.6,3232.3,0.244]
[1736470449580,0.03174431,3232.5,3232.3,0.244]
[1736470450097,2.91219326,3232.6,3232.3,0.244]
[1736470451288,3.47219326,3232.9,3232.3,0.244]
[1736470451592,2.91219326,3232.9,3232.4,0.03093398]
[1736470451793,0.03136456,3232.8,3232.5,3.09358]
[1736470451970,0.03136456,3232.8,3232.5,3.0935]
[1736470452152,0.03136456,3232.8,3232.6,3.33845]
[1736470452990,0.03136456,3232.8,3232.7,3.09338]
[1736470453392,0.03136456,3232.8,3232.6,3.33848]
[1736470453599,2.91219326,3232.9,3232.6,3.33848]
[1736470453960,0.03136456,3232.8,3232.6,3.33848]
[1736470454254,2.91219326,3232.9,3232.6,0.245]
[1736470454471,0.03136456,3232.8,3232.6,0.245]
[1736470456170,0.56,3232.7,3231.9,3.33912]
[1736470456356,2.91219326,3232.3,3231.9,3.33912]
[1736470456903,0.59136456,3232.2,3231.9,0.245]
[1736470457592,0.03136456,3232.2,3231.9,3.33913]
[1736470458102,0.03040213,3232.1,3231.9,0.245]
[1736470458586,2.91219326,3232.3,3231.9,0.245]
[1736470459099,0.03040213,3232.2,3231.9,0.245]
[1736470459599,3.47219326,3232.6,3232.0,3.09405]
[1736470459804,0.03040213,3232.1,3232.0,3.09405]
[1736470460000,3.47219326,3232.6,3232.0,3.09405]
[1736470460202,0.03040213,3232.1,3232.0,3.09405]
[1736470460379,3.47219326,3232.6,3232.0,3.09405]
[1736470460581,0.03040213,3232.1,3232.0,3.09405]
[1736470460781,3.47219326,3232.6,3232.0,3.09405]
[1736470460983,0.03040213,3232.1,3232.0,3.09405]
[1736470461208,3.47219326,3232.6,3232.0,3.09405]
[1736470461403,0.03040213,3232.1,3232.0,3.09405]
[1736470461603,3.47219326,3232.6,3232.0,3.09405]
[1736470461805,0.03040213,3232.1,3232.0,3.09405]
[1736470462266,3.47219326,3232.6,3231.9,0.245]
[1736470462472,0.03040213,3232.5,3231.9,0.245]
[1736470463184,2.91219326,3232.3,3231.9,0.245]
[1736470463711,0.59035628,3232.2,3231.8,0.244]
[1736470464487,0.59035628,3232.2,3231.3,0.7755]
[1736470464488,2.91219326,3232.0,3231.3,0.7755]
[1736470464814,3.26244821,3232.0,3231.4,0.244]
[1736470465133,0.03027112,3231.9,3231.4,0.244]
[1736470465285,0.03027112,3231.9,3231.4,3.09462]
[1736470465467,0.03027112,3231.9,3231.5,0.244]
[1736470465869,0.03027112,3231.9,3231.6,0.03094303]
[1736470466073,2.91219326,3232.0,3231.5,4.11682]
[1736470466275,0.03018596,3231.9,3231.5,3.33852]
[1736470467488,0.03018596,3231.9,3231.6,3.09444]
[1736470469218,0.03018596,3231.9,3231.5,0.2749417]
[1736470469384,0.03018596,3231.9,3231.4,3.09462]
[1736470469598,0.03018596,3231.9,3231.5,0.244]
[1736470470529,0.03018596,3231.9,3231.4,3.09462]
[1736470470692,0.03018596,3231.9,3231.5,0.244]
[1736470471342,0.03018596,3231.9,3231.3,0.7783]
[1736470471502,2.91219326,3231.7,3231.4,0.244]
[1736470471835,2.91219326,3231.7,3230.8,3.87359]
[1736470472115,2.91219326,3231.0,3230.6,0.244]
[1736470472414,0.56,3230.9,3230.6,0.244]
[1736470472624,0.58889511,3230.9,3230.6,0.244]
[1736470473894,0.02889511,3230.9,3230.6,3.33937]
[1736470474092,0.56,3230.6,3230.1,0.244]
[1736470474296,0.56,3230.6,3229.9,3.84715]
[1736470474297,2.91219326,3230.4,3229.9,0.244]
[1736470474498,0.02844263,3230.3,3229.9,0.244]
[1736470474698,2.91219326,3230.1,3229.6,0.7511]
[1736470474914,2.91219326,3230.1,3228.3,6.00976326]
[1736470474915,0.56,3230.0,3229.7,0.244]
[1736470475132,0.58843607,3230.0,3229.7,0.244]
[1736470475485,0.56,3230.0,3229.7,0.244]
[1736470477285,2.91219326,3230.1,3229.7,0.244]
[1736470478617,2.91219326,3230.1,3229.8,3.09615]
[1736470481051,0.56,3230.3,3229.9,3.09606]
[1736470481243,0.56,3230.3,3230.0,3.09595]
[1736470482548,3.47219326,3230.7,3230.0,0.7633]
[1736470483113,3.47219326,3230.7,3230.2,3.09577]
[1736470483688,3.47219326,3230.7,3230.4,3.09556]
[1736470483836,3.47219326,3230.7,3230.2,3.09577]
[1736470485682,2.91219326,3230.4,3230.1,0.244]
[1736470486579,3.47219326,3230.7,3230.1,0.244]
[1736470486745,3.47219326,3230.7,3230.2,3.09573]
[1736470489670,3.47219326,3230.7,3230.1,0.244]
[1736470492081,3.81941259,3230.7,3229.8,3.0]
[1736470492286,0.56,3230.6,3229.9,0.24]
[1736470492983,0.56,3230.6,3229.8,3.0]
[1736470493182,0.56,3230.6,3229.9,0.24]
[1736470494010,0.56,3230.6,3230.1,3.09587]
[1736470495508,0.56,3230.6,3229.9,3.33604]
[1736470496087,2.91219326,3230.4,3229.8,3.0]
[1736470496407,0.56,3230.2,3229.7,0.24]
[1736470497312,0.56,3230.2,3229.9,3.09604]
[1736470497519,0.56,3230.2,3229.7,0.24]
[1736470497520,0.56,3230.2,3229.7,3.33624]
[1736470498695,0.56,3230.2,3229.7,0.24]
[1736470500114,0.56,3230.2,3229.7,3.24]
[1736470500610,0.56,3230.2,3229.7,3.33624]
[1736470500782,0.56,3230.2,3229.8,0.0309617]
[1736470500983,2.91219326,3230.8,3230.0,3.09595]
[1736470501188,0.56,3230.6,3230.0,3.09595]
[1736470501596,0.56,3230.6,3229.7,0.24]
[1736470501803,2.91219326,3230.5,3229.8,3.09613]
[1736470501974,2.91219326,3230.5,3229.9,3.09598]
[1736470503320,2.91219326,3230.5,3229.7,0.27095855]
[1736470503518,2.91219326,3230.5,3230.0,3.09594]
[1736470503815,5.84,3230.6,3230.0,3.09594]
[1736470505101,5.84,3230.6,3229.7,0.27095857]
[1736470505313,0.56,3230.8,3229.9,0.0075]
[1736470505477,3.47219326,3231.1,3230.0,0.8129]
[1736470505855,3.47219326,3231.1,3230.6,3.09537]
[1736470506020,3.81941259,3231.1,3230.6,3.33537]
[1736470506396,0.55,3231.0,3230.6,0.24]
[1736470506603,0.56,3230.7,3230.6,0.24]
[1736470506779,0.56,3230.7,3229.8,3.09611]
[1736470506979,0.56,3230.4,3229.9,0.24]
[1736470507480,0.90721933,3230.4,3229.9,3.33604]
[1736470509480,0.90721933,3230.4,3229.9,0.24]
[1736470509691,0.55,3230.3,3229.9,0.24]
[1736470510392,6.18721933,3230.4,3229.9,0.24]
[1736470512212,5.84,3230.4,3229.9,0.24]
[1736470512528,5.84,3230.4,3230.0,3.09596]
[1736470512718,5.84,3230.4,3230.1,3.09586]
[1736470513035,5.28,3231.0,3230.0,0.03095768]
[1736470513190,5.84,3231.0,3230.3,3.0956]
[1736470513422,0.87521933,3230.9,3230.3,3.0956]
[1736470513635,5.84,3231.0,3230.3,3.0956]
[1736470514274,5.84,3231.0,3229.9,3.336]
[1736470514275,5.84,3231.0,3230.4,3.09556]
[1736470515360,5.84,3231.0,3230.5,3.09547]
[1736470516821,6.09445,3231.6,3230.8,3.09517]
[1736470516822,0.56,3231.3,3230.8,3.09517]
[1736470517165,0.56,3231.3,3230.8,0.24]
[1736470517365,1.43521933,3231.3,3230.8,0.24]
[1736470520896,0.56,3231.3,3230.8,0.24]
[1736470524479,0.55,3231.2,3230.8,0.24]
[1736470524691,3.46219326,3231.2,3230.8,0.24]
[1736470525259,0.56,3231.3,3230.8,0.24]
[1736470525580,0.56,3231.3,3230.9,3.09502]
[1736470525785,0.56,3231.3,3231.0,3.09501]
[1736470526172,0.02713796,3231.2,3231.0,3.09501]
[1736470526361,0.02713796,3231.2,3231.1,3.09492]
[1736470526558,0.56,3231.8,3231.2,3.09478]
[1736470527293,0.56,3231.8,3231.1,0.7502]
[1736470527494,0.56,3231.8,3231.3,3.09472]
[1736470528183,0.56,3231.8,3231.0,3.09492]
[1736470528504,0.56,3231.4,3230.8,0.24]
[1736470528674,0.56,3231.4,3230.8,3.33517]
[1736470528871,0.56,3231.7,3230.9,0.7963]
[1736470529061,0.56,3231.7,3231.2,3.09479]
[1736470529261,5.84,3231.9,3231.0,0.03094811]
[1736470529494,5.84,3231.9,3231.3,3.09472]
[1736470530908,2.91219326,3232.1,3230.4,3.09553]
[1736470530909,0.56,3231.4,3230.7,0.237]
[1736470532076,0.56,3231.4,3230.7,3.33227]
[1736470533207,0.02804954,3231.3,3230.7,3.33227]
[1736470534513,0.02804954,3231.3,3230.7,0.237]
[1736470534805,2.91219326,3231.5,3230.7,0.237]
[1736470534982,0.02779385,3231.2,3230.7,0.237]
[1736470535383,3.78641259,3231.5,3230.7,0.237]
[1736470535596,0.02779385,3231.1,3230.7,0.237]
[1736470535798,5.28,3231.4,3230.7,0.237]
[1736470535982,0.02779385,3231.0,3230.7,0.237]
[1736470536311,5.28,3231.4,3230.7,0.237]
[1736470536498,0.02779385,3230.9,3230.7,0.237]
[1736470536679,0.02779385,3230.9,3230.8,3.0952]
[1736470536887,5.28,3231.4,3230.8,3.0952]
[1736470537074,0.02779385,3230.9,3230.8,3.0952]
[1736470537408,0.02791189,3230.9,3230.8,3.0952]
[1736470537589,5.28,3231.4,3230.8,3.0952]
[1736470537778,0.02791189,3230.9,3230.8,3.0952]
[1736470538181,5.28,3231.4,3230.8,3.0952]
[1736470538507,0.02791189,3230.9,3230.8,3.0952]
[1736470539016,5.28,3231.4,3231.2,3.0948]
[1736470539510,2.91219326,3231.6,3231.0,0.237]
[1736470540606,2.91219326,3231.9,3231.3,3.09465]
[1736470541177,2.91219326,3231.9,3231.4,3.09462]
[1736470541718,3.73141259,3231.9,3231.0,0.237]
[1736470541885,3.73141259,3231.9,3231.0,3.33193]
[1736470542086,3.73141259,3231.9,3231.1,3.09491]
[1736470542286,2.91219326,3231.6,3231.0,0.237]
[1736470542915,3.0,3231.2,3229.8,5.31]
[1736470543092,2.91219326,3230.9,3230.2,3.09572]
[1736470543292,8.28,3230.8,3230.0,3.09594]
[1736470543491,8.28,3230.8,3230.1,0.237]
[1736470544095,8.28,3230.8,3230.1,3.33285]
[1736470544617,0.55,3230.7,3229.3,3.09663]
[1736470544914,2.91219326,3230.3,3229.4,0.237]
[1736470545118,2.91219326,3230.3,3229.7,3.09626]
[1736470546205,2.91219326,3230.3,3229.4,3.09646]
[1736470546390,2.91219326,3230.3,3229.5,0.237]
[1736470547621,2.91219326,3230.3,3229.5,3.33342]
[1736470547801,2.91219326,3230.3,3229.5,3.33344]
[1736470548006,4.04096159,3230.3,3229.5,3.33344]
[1736470548222,0.02757743,3230.2,3229.5,3.33344]
[1736470548397,0.02757743,3230.2,3229.7,3.09625]
[1736470548716,0.02757743,3230.2,3229.8,3.09616]
[1736470549224,0.02757743,3230.1,3229.8,3.09616]
[1736470549397,5.28,3230.4,3229.8,3.09616]
[1736470549578,0.02757743,3230.0,3229.8,3.09616]
[1736470549783,5.28,3230.4,3229.8,3.09616]
[1736470550022,0.02757743,3229.9,3229.8,3.09616]
[1736470550322,5.28,3230.4,3229.8,3.09616]
[1736470551099,5.28,3230.4,3229.9,3.09597]
[1736470551598,5.28,3230.4,3230.0,3.09596]
[1736470551801,5.28,3230.4,3229.9,3.096]
[1736470552198,5.28,3230.4,3229.5,0.237]
[1736470552525,3.44019326,3230.3,3229.5,0.237]
[1736470552825,0.56,3230.2,3229.5,0.237]
[1736470553022,0.56,3230.2,3229.5,0.26796265]
[1736470553199,0.56,3230.2,3229.6,0.7641]
[1736470553393,0.56,3230.2,3229.7,3.09621]
[1736470553616,0.56,3230.2,3229.5,0.237]
[1736470553799,0.56,3230.1,3229.5,0.237]
[1736470554187,0.56,3230.1,3229.3,3.09661]
[1736470554390,0.56,3230.1,3229.5,0.236]
[1736470556227,0.56,3230.1,3229.5,1.0435]
[1736470556801,0.56,3230.1,3229.5,4.13987]
[1736470557015,0.56,3230.1,3229.5,1.07446265]
[1736470557320,0.56,3230.1,3229.5,1.0435]
[1736470557519,5.84,3230.4,3229.8,3.09614]
[1736470558722,5.84,3230.4,3229.9,0.7869]
[1736470559099,5.84,3230.4,3229.9,3.88288]
[1736470559305,5.28,3230.4,3230.1,3.09578]
[1736470560431,0.56,3230.7,3230.1,3.09578]
[1736470561534,3.47219326,3230.6,3229.9,3.09605]
[1736470561828,0.56,3230.6,3229.7,0.7612]
[1736470562028,0.56,3231.0,3230.4,3.0955]
[1736470562244,0.56,3231.0,3230.4,3.3315]
[1736470563144,5.28,3231.2,3230.6,0.793]
[1736470563145,5.84,3231.2,3230.6,0.793]
[1736470563307,8.19219326,3231.7,3230.8,3.09516]
[1736470563518,1.37921933,3231.6,3230.8,3.09516]
[1736470564010,4.37921933,3231.6,3230.6,0.793]
[1736470564210,3.56,3231.6,3231.0,3.095]
[1736470564409,0.56,3231.6,3231.0,3.095]
[1736470565016,0.56,3231.6,3230.8,3.0952]
[1736470565217,0.56,3231.5,3230.8,3.0952]
[1736470565448,0.56,3231.5,3230.5,0.8286]
[1736470565449,0.58755107,3231.5,3230.5,0.8286]
[1736470565653,0.58755107,3231.5,3230.9,3.09501]
[1736470566048,0.58755107,3231.5,3230.7,3.0953]
[1736470566219,0.58755107,3231.5,3231.1,3.09489]
[1736470567736,0.58755107,3231.5,3231.2,0.236]
[1736470568060,0.02755107,3231.5,3231.2,3.3308]
[1736470568357,5.28,3231.7,3231.2,3.3308]
[1736470568857,0.02832494,3231.6,3231.2,3.3308]
[1736470569556,0.02832494,3231.6,3231.3,3.0947]
[1736470569778,0.02832494,3231.6,3231.2,0.236]
[1736470571372,0.02832494,3231.6,3231.5,3.09453]
[1736470571536,0.02832494,3231.6,3231.3,3.0947]
[1736470571735,0.56,3231.8,3231.3,3.0947]
[1736470572275,3.56,3231.6,3230.9,3.0951]
[1736470572445,3.56,3231.6,3231.0,0.236]
[1736470572648,0.02853471,3231.5,3231.0,0.236]
[1736470573521,0.02853471,3231.5,3231.1,0.81874766]
[1736470573651,0.02853471,3231.5,3231.4,3.09463]
[1736470573845,0.56,3231.9,3231.4,3.09463]
[1736470574249,0.02835117,3231.8,3231.4,3.09463]
[1736470574472,0.02835117,3231.8,3231.2,3.09482]
[1736470574676,0.02835117,3231.8,3231.3,3.09463]
[1736470575587,0.02835117,3231.8,3231.1,3.88271]
[1736470575765,0.02835117,3231.8,3231.1,0.7878]
[1736470575972,2.91219326,3231.7,3231.2,0.236]
[1736470576292,0.56,3231.6,3231.2,0.236]
[1736470576464,0.58835117,3231.6,3231.2,0.236]
[1736470577690,0.93840561,3231.6,3230.7,0.8246]
[1736470577898,0.56,3231.5,3230.8,0.236]
[1736470578057,0.58848883,3231.5,3230.8,0.236]
[1736470578457,0.58848883,3231.5,3230.9,3.9226]
[1736470578689,0.58848883,3231.5,3231.0,3.12593892]
[1736470578994,0.58848883,3231.5,3231.0,3.09499]
[1736470585105,0.58848883,3231.5,3230.9,0.8275]
[1736470585692,0.58848883,3231.5,3230.8,3.33119]
[1736470586996,2.91219326,3231.4,3230.4,0.7768]
[1736470587168,0.56,3231.0,3230.3,0.235]
[1736470587373,0.02839705,3230.9,3230.4,3.09557]
[1736470589411,0.02839705,3230.9,3230.3,0.235]
[1736470589601,0.56,3230.8,3230.3,0.235]
[1736470589801,0.02808235,3230.7,3230.3,0.235]
[1736470590296,0.02808235,3230.7,3230.3,3.33068]
[1736470590476,0.02808235,3230.7,3230.3,0.235]
[1736470590912,0.56,3231.0,3230.3,0.235]
[1736470591105,0.02805613,3230.6,3230.5,3.09543]
[1736470591312,0.56,3231.0,3230.5,3.09543]
[1736470591507,0.02805613,3230.6,3230.5,3.09543]
[1736470591715,0.56,3231.0,3230.5,0.753]
[1736470591877,0.56,3231.0,3230.6,3.09539]
[1736470593324,0.02805613,3230.9,3230.6,3.09539]
[1736470597014,0.02805613,3230.9,3230.8,3.0952]
[1736470597329,5.28,3231.2,3230.8,3.0952]
[1736470597493,0.02808891,3230.9,3230.8,3.0952]
[1736470597695,5.28,3231.2,3230.8,3.0952]
[1736470597895,0.02808891,3230.9,3230.8,3.0952]
[1736470598120,5.28,3231.2,3230.8,3.0952]
[1736470598315,0.02808891,3230.9,3230.8,3.0952]
[1736470598533,5.28,3231.2,3230.6,3.09536]
[1736470598728,0.02808891,3230.9,3230.5,0.753]
[1736470598931,0.56,3231.0,3230.3,0.235]
[1736470599114,0.56,3230.7,3230.1,0.235]
[1736470600417,0.56,3230.7,3229.8,3.09607]
[1736470600618,0.56,3230.7,3229.9,0.235]
[1736470600842,0.56,3230.7,3229.9,3.33104]
[1736470607961,0.56,3230.4,3230.0,0.235]
[1736470608181,0.56,3230.4,3229.6,3.09634]
[1736470608384,0.56,3230.4,3229.8,0.235]
[1736470608531,2.91219326,3230.2,3229.8,0.235]
[1736470608884,0.56,3230.1,3229.8,0.235]
[1736470609266,0.56,3230.1,3229.2,3.09673]
[1736470609463,2.91219326,3229.9,3229.2,3.09673]
[1736470609648,0.56,3229.8,3229.0,3.09692]
[1736470609847,0.56,3229.8,3229.1,0.235]
[1736470610289,2.91219326,3229.6,3229.1,0.235]
[1736470610426,5.84,3229.5,3228.8,0.235]
[1736470611167,0.56,3229.5,3228.8,0.235]
[1736470613239,0.56,3229.5,3228.9,3.09701]
[1736470615774,0.56,3229.5,3228.8,0.235]
[1736470616472,0.56,3229.5,3228.8,3.33203]
[1736470617400,0.56,3228.9,3228.6,0.235]
[1736470617674,0.56,3228.9,3228.6,3.33231]
[1736470618436,0.56,3228.9,3228.6,0.235]
[1736470618737,0.90721933,3228.9,3228.2,3.09768]
[1736470618937,0.56,3228.9,3228.4,0.235]
[1736470620289,2.91219326,3228.7,3227.7,0.7843]
[1736470620499,1.11,3228.6,3228.1,0.235]
[1736470621244,0.56,3228.3,3227.8,3.09806]
[1736470621458,0.56,3228.3,3227.8,3.33306]
[1736470621745,0.56,3228.3,3227.8,3.09806]
[1736470621964,0.56,3228.3,3227.8,3.33306]
[1736470624181,0.56,3228.3,3227.9,3.09798]
[1736470627903,0.56,3228.3,3227.8,0.235]
[1736470628059,0.56,3228.5,3227.9,0.8177]
[1736470628263,0.56,3228.5,3228.4,3.0975]
[1736470628461,0.56,3228.5,3228.2,3.09768]
[1736470628783,0.56,3228.5,3228.4,3.0975]
[1736470629899,0.56,3228.8,3228.4,3.0975]
[1736470630444,0.56,3228.8,3228.0,3.09789]
[1736470630678,5.84,3229.0,3228.6,3.09722]
[1736470630842,5.84,3229.0,3228.0,3.09789]
[1736470631048,5.84,3229.0,3228.7,3.09718]
[1736470632966,5.84,3229.0,3228.4,3.09747]
[1736470633308,8.75219326,3229.0,3228.4,3.09747]
[1736470634371,8.75219326,3229.0,3228.0,3.09789]
[1736470634553,8.75219326,3229.0,3228.5,3.0974]
[1736470635993,0.56,3228.9,3228.0,3.09789]
[1736470636173,0.56,3228.9,3228.4,3.0975]
[1736470638002,0.56,3228.9,3228.5,3.09739]
[1736470640147,0.56,3228.9,3228.3,0.7751]
[1736470640422,5.28,3229.0,3228.9,3.09702]
[1736470641236,0.56,3229.4,3228.8,0.7751]
[1736470641385,0.56,3229.4,3229.1,3.09674]
[1736470642488,0.56,3229.4,3228.9,3.33199]
[1736470642702,0.56,3229.4,3228.9,0.235]
[1736470642897,0.56,3229.4,3229.1,3.09675]
[1736470644313,0.56,3229.8,3229.0,0.235]
[1736470644627,0.56,3229.7,3229.0,0.235]
[1736470654257,0.56,3229.5,3228.6,0.235]
[1736470654719,3.0,3229.5,3228.6,0.235]
[1736470654922,0.56,3229.4,3228.6,0.235]
[1736470658431,0.56,3229.4,3228.6,3.33231]
[1736470659267,5.84,3229.4,3228.6,3.33231]
[1736470660681,5.84,3229.4,3228.6,3.09731]
[1736470660888,5.84,3229.4,3228.7,0.235]
[1736470661686,0.56,3229.3,3228.7,0.235]
[1736470661984,1.444,3229.3,3228.7,0.235]
[1736470664886,0.56,3229.3,3228.7,0.235]
[1736470665901,0.56,3229.3,3228.7,0.26597105]
[1736470666197,5.28,3229.4,3229.0,3.09692]
[1736470670308,5.28,3229.4,3229.1,0.235]
[1736470671297,5.84,3229.5,3229.1,0.235]
[1736470672365,6.424,3229.5,3229.1,0.235]
[1736470675792,5.84,3229.5,3229.1,0.235]
[1736470684773,5.28,3229.5,3229.1,0.235]
[1736470689202,5.84,3229.7,3229.1,0.235]
[1736470691403,1.38374344,3229.6,3229.1,0.235]
[1736470694145,1.38374344,3229.4,3229.1,0.235]
[1736470694359,1.38374344,3229.2,3228.5,3.8912]
[1736470694637,1.38374344,3229.2,3228.6,0.235]
[1736470694814,1.87811778,3229.2,3228.6,0.235]
[1736470695335,7.15811778,3229.2,3228.6,0.235]
[1736470695928,1.38374344,3228.8,3228.5,0.7938]
[1736470696253,5.77437434,3229.2,3228.1,0.235]
[1736470696254,1.38374344,3228.6,3228.1,0.235]
[1736470696590,1.38374344,3228.4,3228.1,0.235]
[1736470696792,1.94374344,3228.4,3228.1,0.235]
[1736470697529,0.56,3228.4,3228.0,0.235]
[1736470698444,0.56,3228.4,3227.9,0.235]
[1736470699332,0.56,3228.4,3227.7,0.823]
[1736470699506,1.74622512,3228.4,3227.7,0.823]
[1736470699708,1.74622512,3228.4,3227.8,0.235]
[1736470700395,4.74622512,3228.4,3227.8,0.235]
[1736470701131,0.56,3228.3,3227.7,3.33313]
[1736470701662,0.56,3228.3,3227.7,4.15613]
[1736470703237,0.56,3228.3,3227.7,1.058]
[1736470703423,2.92493116,3228.2,3227.4,0.7609]
[1736470703740,2.92493116,3227.9,3227.2,0.7609]
[1736470703938,0.56,3227.7,3227.3,0.235]
[1736470705757,0.56,3227.4,3226.6,0.8026]
[1736470706838,0.56,3227.4,3226.6,3.90179]
[1736470707042,0.56,3227.0,3226.3,0.8026]
[1736470707337,2.92493116,3226.9,3226.3,1.0376]
[1736470707539,3.0,3226.8,3226.3,0.235]
[1736470707760,0.56,3226.7,3226.3,0.235]
[1736470708628,0.56,3226.7,3226.0,3.3348]
[1736470710067,0.56,3226.7,3225.8,0.8076]
[1736470710348,3.28093116,3226.6,3225.9,3.3349]
[1736470710704,3.639,3226.9,3225.9,0.26599758]
[1736470710705,5.92493116,3226.9,3225.9,0.26599758]
[1736470710933,5.28,3227.0,3226.5,3.09927]
[1736470711136,5.28,3227.0,3226.5,3.88947]
[1736470711318,5.28,3227.0,3226.5,0.7902]
[1736470711534,5.28,3227.0,3226.3,3.89591]
[1736470711946,2.92493116,3226.9,3226.3,3.89591]
[1736470712251,2.92493116,3226.6,3226.1,3.09971]
[1736470712437,5.28,3227.0,3226.2,0.82739574]
[1736470712641,5.28,3227.0,3226.2,0.7964]
[1736470713065,5.28,3227.0,3226.4,3.09942]
[1736470713235,0.82049312,3227.0,3226.4,3.09942]
[1736470716481,3.0,3227.1,3226.4,3.09942]
[1736470720273,3.0,3227.1,3226.5,3.09928]
[1736470720482,5.28,3227.2,3226.4,3.09942]
[1736470720649,3.44839512,3228.1,3226.3,3.92771]
[1736470720650,5.84,3227.8,3226.6,0.8282]
[1736470720978,0.25,3228.8,3227.4,0.8282]
[1736470720979,0.56,3228.0,3227.4,0.8282]
[1736470721175,5.28,3228.2,3227.7,3.09812]
[1736470721705,5.28,3228.5,3227.9,0.8282]
[1736470721853,5.28,3228.5,3228.0,0.03097555]
[1736470722036,3.0,3228.8,3228.1,3.09779]
[1736470722236,1.17649312,3228.8,3228.1,3.09779]
[1736470722678,4.17649312,3228.8,3227.9,3.92617]
[1736470722973,4.17649312,3228.8,3227.9,0.8282]
[1736470723181,4.17649312,3228.8,3228.0,3.09789]
[1736470723537,4.17649312,3228.8,3227.9,0.8282]
[1736470723735,3.0,3228.8,3228.0,0.03097556]
[1736470724036,3.0,3228.8,3227.9,0.8282]
[1736470724446,3.0,3228.8,3228.0,3.09787]
[1736470724654,2.92493116,3228.6,3227.9,0.8282]
[1736470724854,3.0,3228.8,3227.9,3.92617]
[1736470725053,1.12049312,3228.7,3227.9,3.92617]
[1736470726865,1.12049312,3228.7,3227.9,0.8282]
[1736470727175,2.92493116,3228.3,3227.6,1.0561]
[1736470727380,2.92493116,3228.3,3227.3,3.09847]
[1736470727381,2.92493116,3228.3,3227.3,3.91957]
[1736470727581,2.92493116,3228.0,3227.3,0.8211]
[1736470727782,3.0,3227.9,3227.1,3.33373]
[1736470727983,3.0,3227.9,3227.1,0.235]
[1736470728500,3.0,3227.9,3227.0,0.8211]
[1736470728690,3.0,3227.6,3226.7,0.8238]
[1736470729005,2.92493116,3227.4,3226.7,1.0588]